fUSD/lending_fUSD_20260308
["ID","MTS","AMOUNT","RATE_DAILY","PERIOD"]
[407975920,1772956248385,-508.42,0.00049315,120]
[407975921,1772956248395,-508.42,0.00049315,120]
[407975922,1772956248403,-508.42,0.00049315,120]
[407975923,1772956248412,-508.42,0.00049315,120]
[407975924,1772956248421,-508.42,0.00049315,120]
[407975925,1772956248430,-508.42,0.00049315,120]
[407975926,1772956248440,-508.42,0.00049315,120]
[407975927,1772956248448,-508.42,0.00049315,120]
[407975928,1772956248459,-508.42,0.00049315,120]
[407975929,1772956248468,-508.42,0.00049315,120]
[407975930,1772956248477,-508.42,0.00049315,120]
[407975931,1772956248486,-508.42,0.00049315,120]
[407975932,1772956248497,-508.42,0.00049315,120]
[407975933,1772956248506,-508.42,0.00049315,120]
[407975934,1772956248515,-508.42,0.00049315,120]
[407975935,1772956248526,-508.42,0.00049315,120]
[407975936,1772956248536,-508.42,0.00049315,120]
[407975937,1772956248546,-508.42,0.00049315,120]
[407975938,1772956248555,-508.42,0.00049315,120]
[407975939,1772956248566,-508.42,0.00049315,120]
[407975940,1772956248575,-508.42,0.00049315,120]
[407975941,1772956248584,-508.43,0.00049315,120]
[407975942,1772956248593,-3485.95,0.00049315,120]
[407975943,1772956248602,-3485.95,0.00049315,120]
[407975944,1772956248611,-3485.95,0.00049315,120]
[407975945,1772956248620,-3485.95,0.00049315,120]
[407975946,1772956248629,-3485.95,0.00049315,120]
[407975947,1772956248638,-3485.95,0.00049315,120]
[407975948,1772956248647,-3485.95,0.00049315,120]
[407975949,1772956248656,-3485.95,0.00049315,120]
[407975950,1772956248665,-3485.95,0.00049315,120]
[407975951,1772956248675,-3485.95,0.00049315,120]
[407975952,1772956248685,-3485.95,0.00049315,120]
[407975953,1772956248694,-3485.95,0.00049315,120]
[407975954,1772956248703,-3485.95,0.00049315,120]
[407975955,1772956248713,-3485.95,0.00049315,120]
[407975956,1772956248722,-3485.95,0.00049315,120]
[407975957,1772956248731,-3485.95,0.00049315,120]
[407975958,1772956248740,-3485.95,0.00049315,120]
[407975959,1772956248749,-3485.95,0.00049315,120]
[407975960,1772956248759,-3485.95,0.00049315,120]
[407975961,1772956248768,-3485.95,0.00049315,120]
[407975962,1772956248777,-3485.95,0.00049315,120]
[407975963,1772956248786,-3485.95,0.00049315,120]
[407975964,1772956248795,-3485.95,0.00049315,120]
[407975965,1772956248805,-3486.03123058,0.00049315,120]
[407975966,1772956248815,-152.71141018,0.00049315,60]
[407975967,1772956248825,-500.0,0.00049315,120]
[407975968,1772956248836,-500.0,0.00049315,120]
[407975969,1772956248847,-500.0,0.00049315,120]
[407975970,1772956248857,-500.0,0.00049315,120]
[407975971,1772956248867,-500.0,0.00049315,120]
[407975972,1772956248877,-500.0,0.00049315,120]
[407975973,1772956248887,-500.0,0.00049315,120]
[407975974,1772956248897,-500.0,0.00049315,120]
[407975975,1772956248906,-500.0,0.00049315,120]
[407975976,1772956248916,-500.0,0.00049315,120]
[407975977,1772956248925,-500.0,0.00049315,120]
[407975978,1772956248934,-500.0,0.00049315,120]
[407975979,1772956248944,-500.0,0.00049315,120]
[407975980,1772956248953,-500.0,0.00049315,120]
[407975981,1772956248963,-500.0,0.00049315,120]
[407975982,1772956248973,-519.0229917,0.00049315,120]
[407975983,1772956248983,-500.0,0.00049315,120]
[407975984,1772956248992,-500.0,0.00049315,120]
[407975985,1772956249003,-500.0,0.00049315,120]
[407975986,1772956249013,-500.0,0.00049315,120]
[407975987,1772956249023,-500.0,0.00049315,120]
[407975988,1772956249035,-500.0,0.00049315,120]
[407975989,1772956249044,-362.57988751,0.00049315,120]
[407975990,1772956249054,-643.56,0.00049315,120]
[407975991,1772956249064,-643.56,0.00049315,120]
[407975992,1772956249074,-643.56,0.00049315,120]
[407975993,1772956249090,-643.56,0.00049315,120]
[407975994,1772956249099,-643.56,0.00049315,120]
[407975995,1772956249109,-643.56,0.00049315,120]
[407975996,1772956249120,-643.56,0.00049315,120]
[407975997,1772956249130,-643.56,0.00049315,120]
[407975998,1772956249141,-643.56,0.00049315,120]
[407975999,1772956249151,-643.56,0.00049315,120]
[407976000,1772956249163,-643.56,0.00049315,120]
[407976001,1772956249172,-643.56,0.00049315,120]
[407976002,1772956249181,-643.56,0.00049315,120]
[407976003,1772956249190,-643.56,0.00049315,120]
[407976004,1772956249199,-643.56,0.00049315,120]
[407976005,1772956249210,-643.56,0.00049315,120]
[407976006,1772956249221,-643.56,0.00049315,120]
[407976007,1772956249230,-643.56,0.00049315,120]
[407976008,1772956249240,-643.56,0.00049315,120]
[407976009,1772956249250,-643.56,0.00049315,120]
[407976010,1772956249260,-643.56,0.00049315,120]
[407976011,1772956249270,-643.56,0.00049315,120]
[407976012,1772956249280,-643.56,0.00049315,120]
[407976013,1772956249290,-643.79871647,0.00049315,120]
[407976014,1772956249299,-216.1108027,0.00049315,120]
[407976015,1772956249310,-500.0,0.00049315,120]
[407976016,1772956249320,-500.0,0.00049315,120]
[407976017,1772956249330,-500.0,0.00049315,120]
[407976018,1772956249340,-500.0,0.00049315,120]
[407976019,1772956249350,-500.0,0.00049315,120]
[407976020,1772956249360,-500.0,0.00049315,120]
[407976021,1772956249370,-500.0,0.00049315,120]
[407976022,1772956249380,-500.0,0.00049315,120]
[407976023,1772956249390,-381.0527943,0.00049315,120]
[407976024,1772956249401,-500.0,0.00049315,2]
[407976025,1772956249412,-500.0,0.00049315,120]
[407976026,1772956249423,-500.0,0.00049315,2]
[407976027,1772956249432,-500.0,0.00049315,120]
[407976028,1772956249442,-500.0,0.00049315,2]
[407976029,1772956249452,-500.0,0.00049315,120]
[407976030,1772956249463,-500.0,0.00049315,2]
[407976031,1772956249475,-500.0,0.00049315,120]
[407976032,1772956249484,-500.0,0.00049315,2]
[407976033,1772956249493,-500.0,0.00049315,120]
[407976034,1772956249503,-500.0,0.00049315,2]
[407976035,1772956249513,-536.51913395,0.00049315,120]
[407976036,1772956249523,-500.0,0.00049315,2]
[407976037,1772956249532,-500.0,0.00049315,2]
[407976038,1772956249541,-500.0,0.00049315,2]
[407976039,1772956249550,-500.0,0.00049315,2]
[407976040,1772956249559,-500.0,0.00049315,2]
[407976041,1772956249569,-500.0,0.00049315,2]
[407976042,1772956249578,-500.0,0.00049315,2]
[407976043,1772956249587,-500.0,0.00049315,2]
[407976044,1772956249596,-500.0,0.00049315,2]
[407976045,1772956249605,-500.0,0.00049315,2]
[407976046,1772956249614,-500.0,0.00049315,2]
[407976047,1772956249628,-500.0,0.00049315,2]
[407976048,1772956249637,-500.0,0.00049315,2]
[407976049,1772956249646,-500.0,0.00049315,2]
[407976050,1772956249655,-500.0,0.00049315,2]
[407976051,1772956249665,-500.0,0.00049315,2]
[407976052,1772956249675,-500.0,0.00049315,2]
[407976053,1772956249683,-754.03,0.00049315,60]
[407976054,1772956249693,-754.03,0.00049315,60]
[407976055,1772956249703,-2872.0,0.00049316,31]
[407976056,1772956249712,-350.0,0.00049328,8]
[407976057,1772956249721,-150.0,0.00049374,30]
[407976058,1772956249731,-2000.0,0.000494,120]
[407976059,1772956249742,-253.11605135,0.00049401,21]
[407976060,1772956249751,-500.0,0.00049417,60]
[407976061,1772956249760,-500.0,0.00049417,60]
[407976062,1772956249771,-1000.0,0.00049454,30]
[407976063,1772956249780,-1000.0,0.00049472,30]
[407976064,1772956249789,-1000.0,0.00049497,30]
[407976065,1772956249799,-5566.288207,0.000495,120]
[407976066,1772956249808,-5000.0,0.000495,120]
[407976067,1772956249818,-2000.0,0.000495,120]
[407976068,1772956249827,-1000.0,0.00049509,30]
[407976069,1772956249837,-1000.0,0.00049516,30]
[407976070,1772956249847,-150.0,0.00049548,30]
[407976071,1772956249857,-860.0,0.00049573,31]
[407976072,1772956249866,-754.03,0.00049589,60]
[407976073,1772956249875,-754.03,0.00049589,60]
[407976074,1772956249885,-174.45,0.000496,120]
[407976075,1772956249895,-2000.0,0.000496,120]
[407976076,1772956249904,-16144.608974,0.000496,120]
[407976077,1772956249913,-1000.0,0.00049616,30]
[407976078,1772956249923,-155.05476178,0.00049671,30]
[407976079,1772956249932,-151.0,0.0004968,120]
[407976080,1772956249941,-151.0,0.0004968,120]
[407976081,1772956249952,-2000.0,0.000497,120]
[407976082,1772956249961,-200.0,0.000497,35]
[407976083,1772956249971,-1000.0,0.00049711,30]
[407976084,1772956249981,-742.30540298,0.00049719,120]
[407976085,1772956249990,-586.56607109,0.00049723,120]
[407976086,1772956249999,-1131.0,0.00049723,120]
[407976087,1772956250008,-150.27427973,0.00049723,120]
[407976088,1772956250017,-180.0,0.00049723,120]
[407976089,1772956250026,-1117.0,0.00049723,120]
[407976090,1772956250036,-9603.89004594,0.00049723,120]
[407976091,1772956250045,-300.0,0.00049723,120]
[407976092,1772956250054,-445.32084149,0.00049723,120]
[407976093,1772956250064,-990.0,0.00049723,120]
[407976094,1772956250074,-1000.0,0.0004975,30]
[407976095,1772956250083,-1000.0,0.00049767,30]
[407976096,1772956250092,-151.0,0.00049799,7]
[407976097,1772956250101,-156.587,0.00049799,7]
[407976098,1772956250111,-193.30408517,0.00049799,7]
[407976099,1772956250120,-234.0,0.000498,60]
[407976100,1772956250163,-369.71260894,0.000498,7]
[407976101,1772956250173,-172.58447564,0.000498,7]
[407976102,1772956250182,-884.16767683,0.000498,37]
[407976103,1772956250191,-228.53138,0.000498,120]
[407976104,1772956250201,-2000.0,0.000498,120]
[407976105,1772956250210,-212.05,0.000498,120]
[407976106,1772956250220,-8254.78122749,0.000498,2]
[407976107,1772956250229,-193.76024039,0.000498,2]
[407976108,1772956250237,-6805.67119321,0.000498,28]
[407976109,1772956250245,-1187.81902021,0.000498,2]
[407976110,1772956250253,-500.0,0.00049818,2]
[407976111,1772956250262,-500.0,0.00049818,2]
[407976112,1772956250272,-500.0,0.00049818,2]
[407976113,1772956250281,-500698.7257828,0.00049819,2]
[407976114,1772956250290,-151.0,0.00049819,120]
[407976115,1772956250300,-151.0,0.00049819,120]
[407976116,1772956250309,-151.0,0.00049819,120]
[407976117,1772956250318,-153.955216,0.00049819,120]
[407976118,1772956250327,-409.118743,0.00049819,120]
[407976119,1772956250336,-409.118743,0.00049819,120]
[407976120,1772956250345,-409.118743,0.00049819,120]
[407976121,1772956250356,-409.118743,0.00049819,120]
[407976122,1772956250365,-1000.0,0.00049822,30]
[407976123,1772956250375,-500.0,0.00049823,120]
[407976124,1772956250384,-204.304387,0.00049823,120]
[407976125,1772956250393,-1515.0,0.00049863,120]
[407976126,1772956250403,-1515.0,0.00049863,120]
[407976127,1772956250412,-1515.0,0.00049863,120]
[407976128,1772956250421,-1515.0,0.00049863,120]
[407976129,1772956250430,-1515.0,0.00049863,120]
[407976130,1772956250439,-1515.0,0.00049863,120]
[407976131,1772956250448,-1515.0,0.00049863,120]
[407976132,1772956250457,-1515.0,0.00049863,120]
[407976133,1772956250466,-1515.0,0.00049863,120]
[407976134,1772956250475,-1515.0,0.00049863,120]
[407976135,1772956250484,-1515.0,0.00049863,120]
[407976136,1772956250494,-1515.0,0.00049863,120]
[407976137,1772956250503,-1515.0,0.00049863,120]
[407976138,1772956250512,-1515.0,0.00049863,120]
[407976139,1772956250521,-1515.0,0.00049863,120]
[407976140,1772956250530,-1515.0,0.00049863,120]
[407976141,1772956250538,-1515.0,0.00049863,120]
[407976142,1772956250547,-1515.0,0.00049863,120]
[407976143,1772956250556,-1515.0,0.00049863,120]
[407976144,1772956250565,-1515.0,0.00049863,120]
[407976145,1772956250575,-1538.91941432,0.00049863,120]
[407976146,1772956250584,-300.0,0.00049863,120]
[407976147,1772956250593,-1515.0,0.00049863,120]
[407976148,1772956250602,-1515.0,0.00049863,120]
[407976149,1772956250611,-754.03,0.00049863,60]
[407976150,1772956250623,-754.03,0.00049863,60]
[407976151,1772956250632,-6737.0,0.00049863,120]
[407976152,1772956250642,-150.0,0.00049872,30]
[407976153,1772956250651,-215.40583698,0.00049872,30]
[407976154,1772956250660,-250.0,0.00049872,15]
[407976155,1772956250668,-250.0,0.00049872,15]
[407976156,1772956250678,-250.0,0.00049872,15]
[407976157,1772956250687,-250.0,0.00049872,15]
[407976158,1772956250696,-250.0,0.00049872,15]
[407976159,1772956250705,-250.0,0.00049872,15]
[407976160,1772956250715,-205.37563911,0.00049872,15]
[407976161,1772956250724,-500.0,0.00049872,15]
[407976162,1772956250733,-500.0,0.00049872,15]
[407976163,1772956250742,-500.0,0.00049872,15]
[407976164,1772956250751,-500.0,0.00049872,15]
[407976165,1772956250760,-500.0,0.00049872,15]
[407976166,1772956250770,-500.0,0.00049872,15]
[407976167,1772956250779,-500.0,0.00049872,15]
[407976168,1772956250789,-500.0,0.00049872,15]
[407976169,1772956250798,-500.0,0.00049872,15]
[407976170,1772956250808,-500.0,0.00049872,15]
[407976171,1772956250817,-500.0,0.00049872,15]
[407976172,1772956250826,-151.0,0.00049872,15]
[407976173,1772956250835,-151.0,0.00049872,15]
[407976174,1772956250844,-151.0,0.00049872,15]
[407976175,1772956250854,-151.0,0.00049872,15]
[407976176,1772956250863,-151.0,0.00049872,15]
[407976177,1772956250873,-151.0,0.00049872,15]
[407976178,1772956250884,-262.90206542,0.00049872,15]
[407976179,1772956250893,-272.62944185,0.00049872,15]
[407976180,1772956250903,-151.0,0.00049872,15]
[407976181,1772956250911,-282.71673119,0.00049872,15]
[407976182,1772956250921,-151.0,0.00049872,15]
[407976183,1772956250930,-293.17725025,0.00049872,15]
[407976184,1772956250939,-151.0,0.00049872,15]
[407976185,1772956250948,-151.0,0.00049872,15]
[407976186,1772956250957,-743.50770149,0.00049872,15]
[407976187,1772956250967,-304.02480851,0.00049872,15]
[407976188,1772956250976,-151.0,0.00049872,15]
[407976189,1772956250986,-771.01748645,0.00049872,15]
[407976190,1772956250996,-315.27372642,0.00049872,15]
[407976191,1772956251005,-799.54513345,0.00049872,15]
[407976192,1772956251014,-326.9388543,0.00049872,15]
[407976193,1772956251023,-813.35678472,0.00049872,15]
[407976194,1772956251032,-339.03559191,0.00049872,15]
[407976195,1772956251041,-151.0,0.00049872,15]
[407976196,1772956251050,-250.0,0.00049872,15]
[407976197,1772956251059,-151.42631785,0.00049872,15]
[407976198,1772956251068,-250.0,0.00049872,15]
[407976199,1772956251076,-250.0,0.00049872,15]
[407976200,1772956251086,-250.0,0.00049872,15]
[407976201,1772956251095,-250.0,0.00049872,15]
[407976202,1772956251104,-250.0,0.00049872,15]
[407976203,1772956251114,-250.0,0.00049872,15]
[407976204,1772956251123,-250.0,0.00049872,15]
[407976205,1772956251132,-250.0,0.00049872,15]
[407976206,1772956251142,-200.0,0.00049872,15]
[407976207,1772956251154,-355.53018622,0.00049872,15]
[407976208,1772956251164,-200.0,0.00049872,15]
[407976209,1772956251174,-200.0,0.00049872,15]
[407976210,1772956251183,-200.0,0.00049872,15]
[407976211,1772956251192,-200.0,0.00049872,15]
[407976212,1772956251202,-200.0,0.00049872,15]
[407976213,1772956251211,-200.0,0.00049872,15]
[407976214,1772956251219,-200.0,0.00049872,15]
[407976215,1772956251229,-200.0,0.00049872,15]
[407976216,1772956251240,-200.0,0.00049872,15]
[407976217,1772956251261,-200.0,0.00049872,15]
[407976218,1772956251272,-300.0,0.00049872,15]
[407976219,1772956251281,-209.40437684,0.00049872,15]
[407976220,1772956251291,-217.15233878,0.00049872,15]
[407976221,1772956251300,-280.31352223,0.00049872,15]
[407976222,1772956251308,-500.0,0.00049872,15]
[407976223,1772956251318,-500.0,0.00049872,15]
[407976224,1772956251327,-500.0,0.00049872,15]
[407976225,1772956251338,-500.0,0.00049872,15]
[407976226,1772956251347,-500.0,0.00049872,15]
[407976227,1772956251356,-500.0,0.00049872,15]
[407976228,1772956251369,-500.0,0.00049872,15]
[407976229,1772956251377,-500.0,0.00049872,15]
[407976230,1772956251388,-500.0,0.00049872,15]
[407976231,1772956251397,-500.0,0.00049872,15]
[407976232,1772956251406,-500.0,0.00049872,15]
[407976233,1772956251415,-693.3919763,0.00049872,15]
[407976234,1772956251424,-719.04747942,0.00049872,15]
[407976235,1772956251434,-745.65223616,0.00049872,15]
[407976236,1772956251443,-773.2413689,0.00049872,15]
[407976237,1772956251452,-801.85129955,0.00049872,15]
[407976238,1772956251461,-831.51979763,0.00049872,15]
[407976239,1772956251471,-862.28603014,0.00049872,15]
[407976240,1772956251480,-894.19061326,0.00049872,15]
[407976241,1772956251490,-927.27566595,0.00049872,15]
[407976242,1772956251499,-961.58486559,0.00049872,15]
[407976243,1772956251508,-997.16350561,0.00049872,15]
[407976244,1772956251518,-151.0,0.00049872,15]
[407976245,1772956251527,-151.0,0.00049872,15]
[407976246,1772956251536,-151.0,0.00049872,15]
[407976247,1772956251546,-151.0,0.00049872,15]
[407976248,1772956251555,-151.0,0.00049872,15]
[407976249,1772956251564,-151.0,0.00049872,15]
[407976250,1772956251578,-151.0,0.00049872,15]
[407976251,1772956251588,-151.0,0.00049872,15]
[407976252,1772956251598,-151.0,0.00049872,15]
[407976253,1772956251607,-151.0,0.00049872,15]
[407976254,1772956251616,-151.0,0.00049872,15]
[407976255,1772956251630,-151.0,0.00049872,15]
[407976256,1772956251639,-151.0,0.00049872,15]
[407976257,1772956251649,-151.0,0.00049872,15]
[407976258,1772956251658,-151.0,0.00049872,15]
[407976259,1772956251669,-151.0,0.00049872,15]
[407976260,1772956251678,-151.0,0.00049872,15]
[407976261,1772956251687,-269.917619,0.00049872,15]
[407976262,1772956251697,-342.46809728,0.00049872,15]
[407976263,1772956251706,-151.0,0.00049872,15]
[407976264,1772956251716,-151.25613122,0.00049872,15]
[407976265,1772956251725,-2500.0,0.00049872,15]
[407976266,1772956251734,-721.12765535,0.00049872,15]
[407976267,1772956251743,-2500.0,0.00049872,15]
[407976268,1772956251752,-721.12765535,0.00049872,15]
[407976269,1772956251761,-2500.0,0.00049872,15]
[407976270,1772956251771,-2500.0,0.00049872,15]
[407976271,1772956251784,-1000.0,0.00049872,15]
[407976272,1772956251795,-250.0,0.00049872,15]
[407976273,1772956251804,-250.0,0.00049872,15]
[407976274,1772956251813,-250.0,0.00049872,15]
[407976275,1772956251823,-250.0,0.00049872,15]
[407976276,1772956251832,-250.0,0.00049872,15]
[407976277,1772956251842,-250.0,0.00049872,15]
[407976278,1772956251852,-250.0,0.00049872,15]
[407976279,1772956251861,-3000.0,0.00049872,15]
[407976280,1772956251870,-163.77085491,0.00049872,15]
[407976281,1772956251879,-3000.0,0.00049872,15]
[407976282,1772956251891,-201.4007416,0.00049872,15]
[407976283,1772956251900,-757.94767592,0.00049872,15]
[407976284,1772956251909,-609.621819,0.00049872,15]
[407976285,1772956251919,-500.0,0.00049872,15]
[407976286,1772956251929,-500.0,0.00049872,15]
[407976287,1772956251938,-500.0,0.00049872,15]
[407976288,1772956251947,-500.0,0.00049872,15]
[407976289,1772956251957,-174.61919141,0.00049872,15]
[407976290,1772956251967,-500.0,0.00049872,15]
[407976291,1772956251978,-250.0,0.00049872,15]
[407976292,1772956251987,-500.0,0.00049872,15]
[407976293,1772956251996,-181.08010149,0.00049872,15]
[407976294,1772956252005,-500.0,0.00049872,15]
[407976295,1772956252014,-578.20924308,0.00049872,15]
[407976296,1772956252023,-500.0,0.00049872,15]
[407976297,1772956252033,-250.0,0.00049872,15]
[407976298,1772956252042,-187.78006525,0.00049872,15]
[407976299,1772956252051,-500.0,0.00049872,15]
[407976300,1772956252060,-578.20924308,0.00049872,15]
[407976301,1772956252070,-500.0,0.00049872,15]
[407976302,1772956252079,-259.63761657,0.00049872,15]
[407976303,1772956252089,-500.0,0.00049872,15]
[407976304,1772956252098,-500.0,0.00049872,15]
[407976305,1772956252107,-194.72792766,0.00049872,15]
[407976306,1772956252116,-500.0,0.00049872,15]
[407976307,1772956252125,-500.0,0.00049872,15]
[407976308,1772956252135,-201.93286099,0.00049872,15]
[407976309,1772956252145,-4009126.38269966,0.00049873,15]
[407976310,1772956252272,-1503.20181405,0.00049873,15]
[407976311,1772956252437,-500.0,0.00014221,2]
[407976312,1772956252447,-500.0,0.00014495,2]
[407976313,1772956252457,-500.0,0.00014769,2]
[407976314,1772956252466,-500.0,0.00049315,2]
[407976315,1772956252476,-500.0,0.00049315,2]
[407976316,1772956252486,-500.0,0.00049315,2]
[407976317,1772956252495,-500.0,0.00049315,2]
[407976318,1772956252504,-500.0,0.00049315,2]
[407976319,1772956252513,-500.0,0.00049315,2]
[407976320,1772956252523,-500.0,0.00049315,2]
[407976321,1772956252532,-500.0,0.00049818,2]
[407976322,1772956252541,-500.0,0.00049818,2]
[407976323,1772956252551,-500.0,0.00049872,15]
[407976324,1772956252560,-209.40437684,0.00049872,15]
[407976325,1772956252570,-500.0,0.00049872,15]
[407976326,1772956252579,-500.0,0.00049872,15]
[407976327,1772956252588,-217.15233878,0.00049872,15]
[407976328,1772956252598,-500.0,0.00049872,15]
[407976329,1772956252607,-225.18697532,0.00049872,15]
[407976330,1772956252617,-500.0,0.00049872,15]
[407976331,1772956252630,-267.54369637,0.00049872,15]
[407976332,1772956252642,-123734.41551221,0.00049873,15]
[407976333,1772956252664,-970138.58999198,0.00049873,15]
[407976334,1772956252675,-150.24988052,0.00049873,2]
[407976335,1772956252687,-151.0,0.00049873,30]
[407976336,1772956252700,-177.08598154,0.00049873,30]
[407976337,1772956252710,-1000.0,0.00049873,120]
[407976338,1772956252720,-1000.0,0.00049873,120]
[407976339,1772956252731,-1000.0,0.00049873,120]
[407976340,1772956252741,-1000.0,0.00049873,120]
[407976341,1772956252751,-1000.0,0.00049873,120]
[407976342,1772956252763,-757.716,0.00049873,120]
[407976343,1772956252773,-486.08739052,0.0004989,7]
[407976344,1772956252783,-800.0,0.00049891,18]
[407976345,1772956252793,-800.0,0.00049891,18]
[407976346,1772956252803,-800.0,0.00049891,18]
[407976347,1772956252813,-800.0,0.00049891,18]
[407976348,1772956252822,-800.0,0.00049891,18]
[407976349,1772956252831,-800.0,0.00049891,18]
[407976350,1772956252841,-800.0,0.00049891,18]
[407976351,1772956252851,-800.0,0.00049891,18]
[407976352,1772956252861,-800.0,0.00049891,34]
[407976353,1772956252871,-151.0,0.00049897,120]
[407976354,1772956252882,-1206.71951533,0.00049899,90]
[407976355,1772956252892,-1168.97753206,0.00049899,90]
[407976356,1772956252903,-1168.97753207,0.00049899,90]
[407976357,1772956252913,-500.0,0.00049899,2]
[407976358,1772956252923,-499.7,0.00049899,2]
[407976359,1772956252933,-2651.98945348,0.000499,120]
[407976360,1772956252943,-19540.84898,0.000499,54]
[407976361,1772956252953,-3430209.99175153,0.000499,120]
[407976362,1772956252974,-500.0,0.00049818,2]
[407976363,1772956252984,-165.0,0.00049872,15]
[407976364,1772956253178,-150.0,0.00019644,2]
[407976365,1772956253188,-150.0,0.00019699,2]
[407976366,1772956253198,-170.47936844,0.00019754,2]
[407976367,1772956253208,-1216.22037812,0.00023466,2]
[407976368,1772956253218,-1058.02441398,0.00033899,2]
[407976369,1772956253326,-5102.77501315,0.0003299,10]
[407976370,1772956253344,-625.09498685,0.0003299,10]
[407976371,1772956253357,-1401.97558602,0.00033899,2]
[407976372,1772956253368,-1216.2203781,0.00036633,2]
[407976373,1772956253379,-2460.0,0.00036899,2]
[407976374,1772956253391,-2460.0,0.00039899,2]
[407976375,1772956253402,-2460.0,0.00042899,2]
[407976376,1772956253414,-2460.0,0.00045899,2]
[407976377,1772956253424,-308.75506289,0.00048899,2]
[407976378,1772956253440,-910.07126,0.00048899,2]
[407976379,1772956253452,-1225.13267711,0.00048899,2]
[407976380,1772956253462,-335.0,0.00049872,15]
[407976381,1772956253472,-500.0,0.00049872,15]
[407976382,1772956253485,-500.0,0.00049872,15]
[407976383,1772956253495,-500.0,0.00049872,15]
[407976384,1772956253505,-500.0,0.00049899,2]
[407976385,1772956253515,-500.0,0.00049899,2]
[407976386,1772956253525,-645.53,0.00049899,2]
[407976387,1772956253535,-472.0,0.00049899,38]
[407976388,1772956253544,-472.0,0.00049899,54]
[407976389,1772956253554,-467.0,0.00049899,120]
[407976390,1772956253564,-98083.33732289,0.000499,120]
[407976391,1772956253575,-31434.94149265,0.000499,120]
[407976392,1772956253587,-2223.74664,0.000499,120]
[407976393,1772956253598,-402.25685341,0.000499,120]
[407976394,1772956253610,-1556.35525675,0.000499,120]
[407976395,1772956253623,-7868.73602512,0.000499,120]
[407976396,1772956253636,-323.1364,0.000499,120]
[407976397,1772956460681,-505.0,0.00017,2]
[407976398,1772956460713,-250.0,0.00019909,2]
[407976399,1772956460742,-150.0,0.0002,7]
[407976400,1772956778651,-500.0,0.00047219,120]
[407976401,1772956778678,-172.96383299,0.00047219,120]
[407976402,1772956778709,-172.96383299,0.00047219,120]
[407976403,1772956778734,-500.0,0.00047219,30]
[407976404,1772956811983,-500.0,0.00015,30]
[407976405,1772956812012,-512.4085473,0.00015,30]
[407976406,1772956812044,-150.2785,0.00036527,30]
[407976407,1772956812076,-258.04,0.00038034,30]
[407976408,1772956812103,-180.11276457,0.00039306,54]
[407976409,1772956812129,-1566.837,0.00039306,54]
[407976410,1772956812156,-2000.0,0.00042297,120]
[407976411,1772956812182,-193.53,0.00042546,120]
[407976412,1772956812210,-200.0,0.00043068,120]
[407976413,1772956812240,-2000.0,0.00044219,30]
[407976414,1772956812266,-1021.39584913,0.00044219,30]
[407976415,1772956812292,-2000.0,0.00046142,120]
[407976416,1772956812317,-1127.48127758,0.00046275,50]
[407976417,1772956812343,-1044.6951218,0.00046275,50]
[407976418,1772956812368,-1020.55279369,0.00046275,50]
[407976419,1772956812394,-828.73,0.00046275,50]